bitfinex-derivatives/quotes_BTCF0:USTF0_20241210
["timestamp","ask_amount","ask_price","bid_price","bid_amount"]
[1733824412137,0.01309384,97326.0,97325.0,0.23629321]
[1733824412343,0.01309384,97326.0,97325.0,0.052401]
[1733824413357,8.4e-07,97326.0,97325.0,0.29849608]
[1733824413672,8.4e-07,97326.0,97325.0,0.352401]
[1733824413848,8.4e-07,97326.0,97325.0,0.65499721]
[1733824414241,0.00300084,97326.0,97325.0,0.6090591]
[1733824414448,0.3608,97348.0,97347.0,0.051349]
[1733824415453,0.3608,97348.0,97347.0,0.051389]
[1733824416043,0.3668,97348.0,97347.0,0.052389]
[1733824416844,0.006,97348.0,97347.0,0.052389]
[1733824417248,0.009,97348.0,97347.0,0.052389]
[1733824419750,0.009,97348.0,97347.0,0.06324302]
[1733824420053,0.060349,97348.0,97347.0,0.00104]
[1733824420351,0.060349,97348.0,97347.0,0.18528519]
[1733824420554,0.060349,97348.0,97347.0,0.00104]
[1733824423147,0.060349,97348.0,97340.0,0.051353]
[1733824423148,0.051352,97341.0,97340.0,0.051353]
[1733824423449,0.412152,97341.0,97340.0,0.051353]
[1733824424258,0.413152,97341.0,97340.0,0.051353]
[1733824424662,0.414152,97341.0,97340.0,0.051353]
[1733824424861,0.051355,97336.0,97335.0,0.18424519]
[1733824425064,0.09176601,97338.0,97334.0,0.051356]
[1733824425260,0.3941,97340.0,97334.0,0.051356]
[1733824425261,0.082456,97335.0,97334.0,0.06224082]
[1733824426262,0.17422458,97335.0,97334.0,0.06224082]
[1733824426460,0.082456,97335.0,97334.0,0.06224082]
[1733824426957,0.082456,97335.0,97334.0,0.06324082]
[1733824428454,0.17422458,97335.0,97334.0,0.24655819]
[1733824428654,0.17422458,97335.0,97334.0,0.24755819]
[1733824429068,0.082456,97335.0,97334.0,0.06324082]
[1733824429357,0.082456,97335.0,97334.0,0.24755819]
[1733824429959,0.082456,97335.0,97334.0,0.06324082]
[1733824430169,0.17422458,97335.0,97334.0,0.24755819]
[1733824430358,0.082456,97335.0,97334.0,0.06324082]
[1733824430552,0.443256,97335.0,97334.0,0.06324082]
[1733824430865,0.082456,97335.0,97334.0,0.06324082]
[1733824431061,0.443256,97335.0,97334.0,0.06324082]
[1733824433561,0.443256,97335.0,97334.0,0.24755819]
[1733824434168,0.443256,97335.0,97334.0,0.06324082]
[1733824436269,0.443256,97335.0,97334.0,0.06224082]
[1733824436467,0.443256,97335.0,97334.0,0.06324082]
[1733824436670,0.53502458,97335.0,97334.0,0.06324082]
[1733824436859,0.48366858,97335.0,97334.0,0.06324082]
[1733824437457,0.3919,97335.0,97334.0,0.06324082]
[1733824439469,0.48388041,97335.0,97334.0,0.06324082]
[1733824440457,0.48388041,97335.0,97334.0,0.06224082]
[1733824440661,0.48388041,97335.0,97334.0,0.06324082]
[1733824441764,0.3919,97335.0,97334.0,0.06324082]
[1733824444164,0.53523641,97335.0,97334.0,0.06324082]
[1733824444881,0.443256,97335.0,97334.0,0.06324082]
[1733824446668,0.082456,97335.0,97334.0,0.06324082]
[1733824446976,0.443256,97335.0,97334.0,0.06324082]
[1733824447774,0.082456,97335.0,97334.0,0.06324082]
[1733824447969,0.443256,97335.0,97334.0,0.06324082]
[1733824450671,0.443256,97335.0,97334.0,0.052356]
[1733824450875,0.443256,97335.0,97334.0,0.001]
[1733824451273,0.49319081,97335.0,97334.0,0.001]
[1733824452478,0.05136,97326.0,97325.0,0.18479227]
[1733824452674,0.41216,97326.0,97325.0,0.18479227]
[1733824452870,0.41224,97326.0,97325.0,0.18479227]
[1733824453371,0.41224,97326.0,97325.0,0.00010143]
[1733824454074,0.41424,97326.0,97325.0,0.00010143]
[1733824454374,0.41624,97326.0,97325.0,0.00010143]
[1733824456469,0.53890447,97326.0,97325.0,0.00010143]
[1733824457181,0.41624,97326.0,97325.0,0.00010143]
[1733824457383,0.53890155,97326.0,97325.0,0.18470987]
[1733824457580,0.53890155,97326.0,97325.0,0.00010143]
[1733824458681,0.41624,97326.0,97325.0,0.18469577]
[1733824460380,0.41624,97326.0,97325.0,0.00010143]
[1733824460784,0.41624,97326.0,97325.0,0.18469577]
[1733824461186,0.41624,97326.0,97325.0,0.00010143]
[1733824461686,0.41624,97326.0,97325.0,0.18469577]
[1733824462683,0.36488,97326.0,97325.0,0.05146243]
[1733824462902,0.36488,97326.0,97325.0,0.09641075]
[1733824463185,0.36488,97326.0,97325.0,0.37443908]
[1733824463379,0.00408,97326.0,97325.0,0.12920777]
[1733824463985,0.00208,97326.0,97325.0,0.12920777]
[1733824465079,8e-05,97326.0,97325.0,0.13120777]
[1733824465474,8e-05,97326.0,97325.0,0.12920777]
[1733824465686,8e-05,97326.0,97325.0,0.13120777]
[1733824466579,8e-05,97326.0,97325.0,0.08626243]
[1733824476094,8e-05,97326.0,97325.0,0.05346243]
[1733824476491,0.0920285,97326.0,97325.0,0.05346243]
[1733824479587,8e-05,97326.0,97325.0,0.05346243]
[1733824480096,0.09217701,97326.0,97325.0,0.05346243]
[1733824480301,8e-05,97326.0,97325.0,0.05346243]
[1733824481491,0.09218227,97326.0,97325.0,0.09840805]
[1733824481791,0.09218227,97326.0,97325.0,0.05346243]
[1733824481995,0.09218227,97326.0,97325.0,0.09840805]
[1733824483594,0.05144,97326.0,97325.0,0.00210143]
[1733824484103,0.05144,97326.0,97325.0,0.18681386]
[1733824484299,0.05144,97326.0,97325.0,0.18681493]
[1733824484492,0.05144,97326.0,97325.0,0.00210143]
[1733824484798,0.05144,97326.0,97325.0,0.04705026]
[1733824485003,0.05144,97326.0,97325.0,0.04605026]
[1733824485496,0.05144,97326.0,97325.0,0.04505026]
[1733824485703,0.05344,97326.0,97325.0,0.04505026]
[1733824486902,0.05544,97326.0,97325.0,0.04505026]
[1733824487606,0.05544,97326.0,97325.0,0.00010143]
[1733824491101,0.41624,97326.0,97325.0,0.00010143]
[1733824494491,0.36488,97326.0,97325.0,0.00010143]
[1733824494814,0.36488,97326.0,97325.0,0.34267801]
[1733824495002,0.45699842,97326.0,97325.0,0.09640853]
[1733824495199,0.36488,97326.0,97325.0,0.09640853]
[1733824495501,0.00408,97326.0,97325.0,0.09640853]
[1733824495797,0.00208,97326.0,97325.0,0.09640853]
[1733824496206,0.00108,97326.0,97325.0,0.09640853]
[1733824497108,8e-05,97326.0,97325.0,0.09640853]
[1733824497805,8e-05,97326.0,97325.0,0.05146243]
[1733824498007,8e-05,97326.0,97325.0,0.05246243]
[1733824498506,8e-05,97326.0,97325.0,0.05446243]
[1733824500202,8e-05,97326.0,97325.0,0.05346243]
[1733824501203,8e-05,97326.0,97325.0,0.0984063]
[1733824501603,8e-05,97326.0,97325.0,0.05346243]
[1733824503809,0.05144,97326.0,97325.0,0.05146243]
[1733824504015,0.17426385,97326.0,97325.0,0.04704761]
[1733824504321,0.17426385,97326.0,97325.0,0.00210143]
[1733824504501,0.17426385,97326.0,97325.0,0.00010143]
[1733824504706,0.17426385,97326.0,97325.0,0.00210143]
[1733824505203,0.05244,97326.0,97325.0,0.00010143]
[1733824505711,0.41224,97326.0,97325.0,0.18482443]
[1733824505907,0.41424,97326.0,97325.0,0.18482443]
[1733824506212,0.41424,97326.0,97325.0,0.00010143]
[1733824506813,0.41624,97326.0,97325.0,0.00010143]
[1733824507314,0.41624,97326.0,97325.0,0.18481853]
[1733824507512,0.41624,97326.0,97325.0,0.00010143]
[1733824508513,0.41624,97326.0,97325.0,0.18481737]
[1733824509114,0.41624,97326.0,97325.0,0.00010143]
[1733824511115,0.00408,97326.0,97325.0,0.41226243]
[1733824511321,0.00408,97326.0,97325.0,0.67137918]
[1733824511508,0.09213339,97336.0,97335.0,0.051356]
[1733824511715,0.09213339,97341.0,97340.0,0.051353]
[1733824511922,0.09213339,97342.0,97340.0,0.051353]
[1733824512116,0.12284234,97348.0,97340.0,0.051353]
[1733824512117,0.09213339,97341.0,97340.0,0.051353]
[1733824512314,0.09213339,97343.0,97335.0,0.3608]
[1733824512519,0.09213339,97343.0,97342.0,0.051352]
[1733824513416,0.09213339,97346.0,97344.0,0.051351]
[1733824514314,0.09213339,97347.0,97346.0,0.05135]
[1733824514723,0.09213339,97347.0,97346.0,0.05139]
[1733824515319,0.09213339,97348.0,97346.0,0.23577923]
[1733824515718,0.09213339,97348.0,97347.0,4e-05]
[1733824517032,0.09213339,97349.0,97348.0,0.051349]
[1733824517417,0.09213339,97349.0,97348.0,0.051389]
[1733824518020,0.37210319,97350.0,97348.0,0.051389]
[1733824518021,0.4535334,97350.0,97348.0,0.051389]
[1733824518224,0.004,97349.0,97348.0,0.051389]
[1733824518422,0.004,97349.0,97348.0,0.051349]
[1733824518615,0.012,97349.0,97348.0,0.052349]
[1733824519934,0.008,97349.0,97348.0,0.052349]
[1733824520319,0.3648,97350.0,97348.0,0.051349]
[1733824520518,0.3728,97350.0,97348.0,0.052349]
[1733824520730,0.004,97349.0,97348.0,0.052349]
[1733824521423,0.012,97349.0,97348.0,0.052349]
[1733824523828,0.008,97349.0,97348.0,0.052349]
[1733824524623,0.012,97349.0,97348.0,0.052349]
[1733824527433,0.012,97349.0,97348.0,0.09728228]
[1733824528523,0.012,97349.0,97348.0,0.052349]
[1733824529030,0.012,97349.0,97348.0,0.0972823]
[1733824529225,0.012,97349.0,97348.0,0.052349]
[1733824537432,0.012,97349.0,97348.0,0.09728193]
[1733824538045,0.012,97349.0,97348.0,0.052349]
[1733824538331,0.012,97349.0,97348.0,0.29832435]
[1733824538735,0.18613087,97369.0,97348.0,0.29832435]
[1733824538736,0.09213339,97366.0,97363.0,0.051341]
[1733824538938,0.3608,97372.0,97363.0,0.051341]
[1733824538939,0.09213339,97370.0,97363.0,0.051341]
[1733824539236,0.3608,97372.0,97363.0,0.09630648]
[1733824539428,0.45293339,97372.0,97363.0,0.09630648]
[1733824539633,0.3608,97372.0,97363.0,0.09630648]
[1733824540431,0.09213339,97376.0,97363.0,0.35643114]
[1733824540632,0.13334052,97381.0,97363.0,0.35643114]
[1733824540633,0.00810005,97364.0,97363.0,0.35643114]
[1733824541036,0.01310005,97364.0,97363.0,0.35643114]
[1733824542030,0.00510005,97364.0,97363.0,0.35543114]
[1733824542242,0.00010005,97364.0,97363.0,0.67405794]
[1733824542445,0.00510005,97364.0,97363.0,0.10762394]
[1733824546746,0.36590005,97364.0,97363.0,0.00104]
[1733824547045,0.051345,97355.0,97353.0,0.1842236]
[1733824547339,0.051345,97355.0,97352.0,0.2355706]
[1733824547740,8e-05,97353.0,97352.0,0.2355706]
[1733824548842,8e-05,97353.0,97352.0,0.051347]
[1733824549237,0.00308,97353.0,97352.0,0.051347]
[1733824551038,0.00108,97353.0,97352.0,0.051347]
[1733824551540,0.00308,97353.0,97352.0,0.051347]
[1733824552137,0.00208,97353.0,97352.0,0.051347]
[1733824552838,0.00208,97353.0,97352.0,0.09627951]
[1733824558242,0.00208,97353.0,97352.0,0.051347]
[1733824558442,0.00208,97353.0,97352.0,0.09627515]
[1733824563342,0.00208,97353.0,97352.0,0.051347]
[1733824563549,0.00010005,97364.0,97363.0,0.051341]
[1733824563747,0.00010005,97364.0,97363.0,0.09626864]
[1733824563952,0.00010005,97364.0,97363.0,0.051341]
[1733824564147,0.00010005,97364.0,97363.0,0.0962657]
[1733824564551,0.00010005,97364.0,97363.0,0.0963057]
[1733824565054,0.00110005,97364.0,97363.0,0.0963057]
[1733824565255,0.00110005,97364.0,97363.0,0.36734345]
[1733824566748,0.00110005,97364.0,97363.0,0.10677442]
[1733824567854,0.00310005,97364.0,97363.0,0.10677442]
[1733824570460,0.00310005,97364.0,97363.0,0.36747522]
[1733824574159,0.00310005,97364.0,97363.0,0.72827522]
[1733824574667,0.00310005,97364.0,97363.0,0.98890358]
[1733824574974,0.00310005,97364.0,97363.0,0.72820278]
[1733824577180,0.00110005,97364.0,97363.0,0.72820278]
[1733824578060,0.0329,97379.0,97378.0,0.051333]
[1733824578265,0.031,97380.0,97379.0,0.051332]
[1733824578771,0.031,97380.0,97379.0,0.29693246]
[1733824578969,0.031,97380.0,97379.0,0.29702836]
[1733824579462,0.031,97380.0,97379.0,0.29701433]
[1733824579864,0.031,97380.0,97379.0,0.0514679]
[1733824581074,0.033,97380.0,97379.0,0.0514679]
[1733824582377,0.033,97380.0,97379.0,0.09638419]
[1733824583481,0.033,97380.0,97379.0,0.0514679]
[1733824584476,0.033,97380.0,97379.0,0.06181364]
[1733824585377,0.033,97380.0,97379.0,0.10672993]
[1733824587470,0.033,97380.0,97379.0,0.4136805]
[1733824588378,0.033,97380.0,97379.0,0.36898858]
[1733824588781,0.05140396,97395.0,97379.0,0.36898858]
[1733824588782,0.09213339,97391.0,97387.0,0.051328]
[1733824588975,0.12233339,97394.0,97387.0,0.35893385]
[1733824589174,0.0302,97394.0,97389.0,0.30760585]
[1733824589376,0.0302,97394.0,97393.0,0.051365]
[1733824589582,0.0302,97394.0,97393.0,0.09627586]
[1733824590478,0.0302,97394.0,97393.0,0.35971143]
[1733824590877,0.0302,97394.0,97393.0,0.35871143]
[1733824591475,0.0328,97405.0,97393.0,0.35871143]
[1733824591680,0.0328,97405.0,97399.0,0.412122]
[1733824591978,0.0328,97405.0,97399.0,0.71946843]
[1733824592389,0.0328,97405.0,97399.0,0.45707286]
[1733824593080,0.0328,97405.0,97399.0,0.45807286]
[1733824593987,0.10409513,97400.0,97399.0,0.76517913]
[1733824594185,0.10409513,97400.0,97399.0,0.45807286]
[1733824594375,0.10409513,97400.0,97399.0,0.76498167]
[1733824594579,0.00409513,97400.0,97399.0,0.71984605]
[1733824594788,0.0647,97413.0,97399.0,0.71984605]
[1733824594989,0.0647,97413.0,97412.0,0.412115]
[1733824595582,0.0647,97413.0,97412.0,0.45702586]
[1733824595783,0.09213339,97425.0,97412.0,0.412155]
[1733824595979,0.0317,97429.0,97428.0,0.051307]
[1733824596379,0.0317,97429.0,97428.0,0.051347]
[1733824597778,0.0317,97429.0,97428.0,0.06205191]
[1733824598187,0.0337,97429.0,97428.0,0.06205191]
[1733824603190,0.0337,97429.0,97428.0,0.051347]
[1733824614303,0.0337,97429.0,97428.0,0.09624446]
[1733824615906,0.002,97429.0,97428.0,0.09624446]
[1733824616908,0.002,97429.0,97428.0,0.051347]
[1733824620510,0.002,97429.0,97428.0,0.09624423]
[1733824621415,0.002,97429.0,97428.0,0.34165293]
[1733824622500,0.002,97429.0,97428.0,0.09624423]
[1733824622704,0.14543939,97429.0,97428.0,0.09624423]
[1733824622899,0.053306,97429.0,97428.0,0.09624578]
[1733824623302,0.14529715,97429.0,97428.0,0.09624578]
[1733824623509,0.053306,97429.0,97428.0,0.34219349]
[1733824623904,0.053306,97429.0,97428.0,0.09624578]
[1733824626415,0.17614834,97429.0,97428.0,0.09624578]
[1733824626717,0.053306,97429.0,97428.0,0.09624578]
[1733824627812,0.17614834,97429.0,97428.0,0.09624578]
[1733824630120,0.053306,97429.0,97428.0,0.09624578]
[1733824631218,0.17614834,97429.0,97428.0,0.04493878]
[1733824631403,0.051316,97411.0,97410.0,0.16544802]
[1733824631602,0.051316,97411.0,97410.0,0.21034879]
[1733824631603,0.412116,97411.0,97410.0,0.21034879]
[1733824631904,0.412196,97411.0,97410.0,0.15903279]
[1733824632118,0.412196,97411.0,97410.0,0.04490077]
[1733824633509,0.412196,97411.0,97407.0,0.24605243]
[1733824633510,0.051317,97408.0,97407.0,0.24605243]
[1733824633715,0.051317,97408.0,97405.0,0.24605243]
[1733824633716,0.051318,97406.0,97405.0,0.24605243]
[1733824633915,0.051319,97404.0,97403.0,0.24605243]
[1733824634116,0.051319,97404.0,97403.0,0.29096201]
[1733824634314,0.051399,97404.0,97403.0,0.29096201]
[1733824634520,0.051399,97404.0,97403.0,0.04490958]
[1733824635116,0.051399,97404.0,97403.0,0.09622958]
[1733824635514,8e-05,97404.0,97403.0,0.05132]
[1733824636118,8e-05,97404.0,97403.0,0.05332]
[1733824636718,8e-05,97404.0,97403.0,0.05732]
[1733824637414,8e-05,97404.0,97403.0,0.05332]
[1733824637614,8e-05,97404.0,97403.0,0.05532]
[1733824637815,8e-05,97404.0,97403.0,0.05332]
[1733824638027,8e-05,97404.0,97403.0,0.05532]
[1733824639927,8e-05,97404.0,97403.0,0.10022919]
[1733824640127,8e-05,97404.0,97403.0,0.28440537]
[1733824641827,8e-05,97404.0,97403.0,0.23949618]
[1733824642127,8e-05,97404.0,97403.0,0.2844051]
[1733824642325,8e-05,97404.0,97403.0,0.23949618]
[1733824643419,8e-05,97404.0,97403.0,0.2844051]
[1733824643618,8e-05,97404.0,97403.0,0.2824051]
[1733824643812,8e-05,97404.0,97403.0,0.2844051]
[1733824644228,8e-05,97404.0,97403.0,0.10022892]
[1733824644435,8e-05,97404.0,97403.0,0.34628003]
[1733824644727,8e-05,97404.0,97403.0,0.36518978]
[1733824646532,8e-05,97404.0,97403.0,0.40710531]
[1733824646758,8e-05,97404.0,97403.0,0.0982276]
[1733824646950,8e-05,97404.0,97403.0,0.05532]
[1733824647137,8e-05,97404.0,97403.0,0.10022794]
[1733824647320,8e-05,97404.0,97403.0,0.10222794]
[1733824648135,8e-05,97404.0,97403.0,0.05732]
[1733824648436,8e-05,97404.0,97403.0,0.05632]
[1733824649232,0.051399,97404.0,97403.0,0.05632]
[1733824649928,0.051399,97404.0,97403.0,0.05332]
[1733824650125,0.051399,97404.0,97403.0,0.05632]
[1733824650528,0.051399,97404.0,97403.0,0.05332]
[1733824650743,8e-05,97404.0,97403.0,0.05632]
[1733824651037,8e-05,97404.0,97403.0,0.3467538]
[1733824651266,0.3608,97422.0,97403.0,0.31539939]
[1733824651534,0.3608,97422.0,97421.0,0.05131]
[1733824652141,0.3608,97422.0,97421.0,0.29689219]
[1733824653531,0.3628,97422.0,97421.0,0.29689219]
[1733824654434,0.3628,97422.0,97421.0,0.35223423]
[1733824656240,0.3618,97422.0,97421.0,0.35223423]
[1733824657538,0.3618,97422.0,97421.0,0.06179285]
[1733824657840,0.08917286,97434.0,97421.0,0.42259285]
[1733824658066,0.12268476,97457.0,97456.0,0.051292]
[1733824658344,0.12268476,97475.0,97456.0,0.3608]
[1733824658643,0.12268476,97479.0,97472.0,0.3608]
[1733824658849,0.02007295,97480.0,97472.0,0.3608]
[1733824659140,0.02007295,97480.0,97478.0,4e-05]
[1733824659141,0.05128,97479.0,97478.0,4e-05]
[1733824659640,0.05128,97479.0,97478.0,0.01606994]
[1733824660842,0.05128,97479.0,97478.0,0.06734994]
[1733824661340,0.05128,97479.0,97478.0,0.06834994]
[1733824662443,0.05628,97479.0,97478.0,0.01706994]
[1733824663950,0.005,97479.0,97478.0,0.01706994]
[1733824664345,0.005,97479.0,97478.0,0.06834994]
[1733824664750,0.005,97479.0,97478.0,0.05232]
[1733824685258,0.005,97479.0,97478.0,0.09719525]
[1733824685455,0.01073037,97485.0,97484.0,0.051277]
[1733824686360,0.01073037,97485.0,97484.0,0.051317]
[1733824686757,0.01573037,97485.0,97484.0,0.052317]
[1733824687260,0.01573037,97485.0,97484.0,0.0971923]
[1733824689249,0.01073037,97485.0,97484.0,0.0971923]
[1733824689562,0.01273037,97485.0,97484.0,0.0971923]
[1733824689765,0.01273037,97485.0,97484.0,0.0961923]
[1733824690352,0.01273037,97485.0,97484.0,0.0449153]
[1733824690564,0.06258778,97485.0,97484.0,0.04491607]
[1733824690764,0.051279,97480.0,97479.0,0.18453909]
[1733824691056,0.10113641,97480.0,97479.0,0.04487706]
[1733824691258,0.04993741,97480.0,97475.0,0.18453909]
[1733824691448,0.5141826,97476.0,97475.0,0.18453909]
[1733824691651,0.3608,97476.0,97475.0,0.04488165]
[1733824692259,0.51424165,97476.0,97475.0,0.04488165]
[1733824693866,0.36088,97476.0,97475.0,0.04488165]
[1733824694464,0.412161,97476.0,97475.0,0.04488165]
[1733824698161,0.36088,97476.0,97475.0,0.09616365]
[1733824698470,0.15330711,97494.0,97475.0,0.26822255]
[1733824698660,0.3608,97495.0,97494.0,0.051272]
[1733824699064,0.1,97500.0,97494.0,0.051272]
[1733824699065,0.1,97500.0,97499.0,0.051269]
[1733824699262,0.1,97500.0,97499.0,0.09613857]
[1733824699958,0.1,97500.0,97499.0,0.051269]
[1733824701365,0.1,97500.0,97499.0,0.052269]
[1733824701872,0.103,97500.0,97499.0,0.052269]
[1733824703363,0.103,97500.0,97499.0,0.09713533]
[1733824703875,0.103,97500.0,97499.0,0.28116035]
[1733824704070,0.103,97500.0,97499.0,0.09713533]
[1733824709472,0.103,97500.0,97499.0,0.052269]
[1733824710663,0.103,97500.0,97499.0,0.09713542]
[1733824711973,0.103,97500.0,97499.0,0.052269]
[1733824714976,0.103,97500.0,97499.0,0.23629402]
[1733824715165,0.103,97500.0,97499.0,0.28115816]
[1733824715575,0.103,97500.0,97499.0,0.09713314]
[1733824715777,0.103,97500.0,97499.0,0.28091916]
[1733824716177,0.103,97500.0,97499.0,0.09713314]
[1733824716675,0.103,97500.0,97499.0,0.28091916]
[1733824719289,0.103,97500.0,97499.0,0.09713314]
[1733824719496,0.103,97500.0,97499.0,0.28091916]
[1733824721697,0.103,97500.0,97499.0,0.28089999]
[1733824722394,0.103,97500.0,97499.0,0.09713314]
[1733824724690,0.103,97500.0,97499.0,0.45793314]
[1733824724891,0.103,97500.0,97499.0,0.04586414]
[1733824725089,0.103,97500.0,97499.0,0.001]
[1733824725292,0.1358,97500.0,97499.0,0.001]
[1733824725686,0.1358,97500.0,97499.0,0.18492391]
[1733824725889,0.1358,97500.0,97499.0,0.001]
[1733824726105,0.1358,97500.0,97499.0,0.18492391]
[1733824726285,0.1358,97500.0,97499.0,0.052269]
[1733824728485,0.187069,97500.0,97499.0,0.052269]
[1733824728995,0.187069,97500.0,97499.0,0.09713642]
[1733824735693,0.187069,97500.0,97499.0,0.04586742]
[1733824736787,0.187069,97500.0,97499.0,0.09713642]
[1733824737498,0.187069,97500.0,97499.0,0.04586742]
[1733824744700,0.187069,97500.0,97499.0,0.09713642]
[1733824745402,0.154269,97500.0,97499.0,0.09713642]
[1733824748302,0.154269,97500.0,97499.0,0.052269]
[1733824754209,0.154269,97500.0,97499.0,0.09713559]
[1733824755303,0.154269,97500.0,97499.0,0.68370424]
[1733824756710,0.154269,97500.0,97499.0,0.68444059]
[1733824757611,0.154269,97500.0,97499.0,0.37684523]
[1733824757800,0.154269,97500.0,97499.0,0.68444196]
[1733824758511,0.154269,97500.0,97499.0,0.40473232]
[1733824759009,0.154269,97500.0,97499.0,0.68483869]
[1733824760204,0.154269,97500.0,97499.0,0.40473232]
[1733824760406,0.154269,97500.0,97499.0,0.052269]
[1733824760407,0.27707264,97500.0,97499.0,0.052269]
[1733824764024,0.154269,97500.0,97499.0,0.63392056]
[1733824764219,0.515069,97500.0,97499.0,0.63392056]
[1733824764405,0.515069,97500.0,97499.0,0.001]
[1733824764905,0.66824744,97500.0,97499.0,0.00420509]
[1733824765307,0.515069,97500.0,97499.0,0.00420509]
[1733824766905,0.56492171,97500.0,97499.0,0.00420509]
[1733824768212,0.515069,97500.0,97499.0,0.00420509]
[1733824768510,0.515069,97500.0,97499.0,0.05547409]
[1733824769305,0.515069,97500.0,97499.0,0.00420509]
[1733824770309,0.515069,97500.0,97499.0,0.18857701]
[1733824770509,0.515069,97500.0,97499.0,0.18857694]
[1733824771811,0.515069,97500.0,97499.0,0.18537192]
[1733824772117,0.515069,97500.0,97499.0,0.18857694]
[1733824773112,0.515069,97500.0,97499.0,0.18537192]
[1733824773621,0.515069,97500.0,97499.0,0.18857694]
[1733824774819,0.515069,97500.0,97499.0,0.00420502]
[1733824778225,0.515069,97500.0,97499.0,0.001]
[1733824778523,0.515069,97500.0,97499.0,0.00420502]
[1733824780214,0.515069,97500.0,97499.0,0.04907534]
[1733824780813,0.515069,97500.0,97499.0,0.00420502]
[1733824782222,0.58635537,97500.0,97499.0,0.00420502]
[1733824782415,0.4638,97500.0,97499.0,0.00420502]
[1733824782613,0.19492861,97500.0,97499.0,0.00420502]
[1733824783125,0.103,97500.0,97499.0,0.04907118]
[1733824784413,0.103,97500.0,97499.0,0.04907089]
[1733824784826,0.19492861,97500.0,97499.0,0.04907089]
[1733824785713,0.103,97500.0,97499.0,0.04907089]
[1733824785917,0.19492861,97500.0,97499.0,0.04907089]
[1733824787016,0.103,97500.0,97499.0,0.04907089]
[1733824789635,0.103,97500.0,97499.0,0.00420473]
[1733824789636,0.19492861,97500.0,97499.0,0.00420473]
[1733824790042,0.19492861,97500.0,97499.0,0.03630473]
[1733824790825,0.19492861,97500.0,97499.0,0.03630472]
[1733824792740,0.19492861,97500.0,97499.0,0.08117086]
[1733824793037,0.103,97500.0,97499.0,0.08117086]
[1733824793235,0.1949298,97500.0,97499.0,0.03630472]
[1733824795042,0.103,97500.0,97499.0,0.08117068]
[1733824797035,0.103,97500.0,97499.0,0.03630472]
[1733824797640,0.103,97500.0,97499.0,0.04676722]
[1733824800339,0.103,97500.0,97499.0,0.0435625]
[1733824800540,0.103,97500.0,97499.0,0.04676718]
[1733824800734,0.103,97500.0,97499.0,0.09163274]
[1733824802633,0.103,97500.0,97499.0,0.09163271]
[1733824803840,0.103,97500.0,97499.0,0.39922944]
[1733824804036,0.103,97500.0,97499.0,0.67759571]
[1733824804443,0.103,97500.0,97499.0,0.37000708]
[1733824804740,0.103,97500.0,97499.0,0.67724992]
[1733824804933,0.103,97500.0,97499.0,0.04676715]
[1733824805131,0.103,97500.0,97499.0,0.09163171]
[1733824805333,0.103,97500.0,97499.0,0.35400999]
[1733824805535,0.103,97500.0,97499.0,0.14290071]
[1733824805931,0.103,97500.0,97499.0,0.45014355]
[1733824806737,0.103,97500.0,97499.0,0.38946298]
[1733824807042,0.103,97500.0,97499.0,0.69671853]
[1733824807449,0.103,97500.0,97499.0,0.38946298]
[1733824809049,0.104,97500.0,97499.0,0.38846298]
[1733824809543,0.101,97500.0,97499.0,0.38846298]
[1733824809747,0.104,97500.0,97499.0,0.38846298]
[1733824811146,0.104,97500.0,97499.0,0.38817527]
[1733824812048,0.0919298,97508.0,97499.0,0.75762494]
[1733824812258,8.812e-05,97509.0,97507.0,0.412065]
[1733824812557,0.09198858,97525.0,97524.0,0.051256]
[1733824812748,0.09198858,97532.0,97530.0,0.051253]
[1733824812951,0.09198858,97532.0,97524.0,0.73849977]
[1733824812952,0.09198858,97533.0,97532.0,0.051252]
[1733824813256,0.12255537,97537.0,97536.0,0.051249]
[1733824813447,0.12255537,97537.0,97536.0,0.05453164]
[1733824813638,0.14312359,97538.0,97536.0,0.23869254]
[1733824813950,0.051249,97538.0,97537.0,0.00320465]
[1733824814142,0.051249,97538.0,97537.0,0.00324465]
[1733824814943,0.051249,97538.0,97537.0,0.0032436]
[1733824815148,0.051249,97538.0,97537.0,4e-05]
[1733824815343,0.14307091,97538.0,97537.0,0.0032436]
[1733824815547,0.051249,97538.0,97537.0,0.0032436]
[1733824816550,0.054249,97538.0,97537.0,0.0032436]
[1733824816755,0.054249,97538.0,97537.0,0.0042436]
[1733824817665,7.843e-05,97547.0,97537.0,0.70988736]
[1733824817860,0.3608,97558.0,97546.0,0.3608]
[1733824818056,0.051241,97553.0,97551.0,0.24504201]
[1733824818250,0.051241,97553.0,97540.0,0.051247]
[1733824818251,0.0322,97552.0,97537.0,0.68905665]
[1733824818446,0.0322,97552.0,97550.0,0.18378895]
[1733824818447,0.051242,97551.0,97550.0,0.18378895]
[1733824818648,0.051245,97546.0,97544.0,0.18378895]
[1733824818852,0.051245,97546.0,97545.0,0.00320323]
[1733824819648,0.051245,97546.0,97545.0,0.1867892]
[1733824820354,0.051245,97546.0,97545.0,0.1887892]
[1733824820554,0.051245,97546.0,97545.0,0.00520323]
[1733824821140,0.051245,97546.0,97545.0,0.00720323]
[1733824821348,0.051245,97546.0,97545.0,0.00720324]
[1733824821750,0.051242,97552.0,97550.0,0.051242]
[1733824821960,0.051242,97552.0,97551.0,0.00320324]
[1733824822152,0.051242,97552.0,97551.0,0.00324324]
[1733824822379,0.06625294,97570.0,97551.0,0.00324324]
[1733824822380,0.12255537,97584.0,97552.0,0.061241]
[1733824822567,0.12255537,97585.0,97583.0,0.412025]
[1733824822769,0.151217,97600.0,97590.0,0.051221]
[1733824822953,0.151217,97600.0,97598.0,0.051217]
[1733824823160,0.1,97600.0,97598.0,0.051217]
[1733824823360,0.1,97600.0,97599.0,8.006e-05]
[1733824823746,0.1,97600.0,97599.0,0.00012006]
[1733824823949,0.101,97600.0,97599.0,0.00012006]
[1733824824354,0.102,97600.0,97599.0,0.00012006]
[1733824825464,0.101,97600.0,97599.0,0.00432176]
[1733824825956,0.101,97600.0,97599.0,0.00332176]
[1733824826272,0.101,97600.0,97599.0,0.00832176]